Cogmind - Beta 17 @@@ ROGUE MODE // 2026.07.23 @ 11:30:31 Player: President Manblast Result: Destroyed by NK-GJL(R) with Subdweller Shrapnel Launcher Performance ------------- Evolutions (0) 0 Regions Visited (2) 400 Robots Destroyed (22) 110 Value Destroyed (377) 377 Prototype IDs (3) 60 Alien Tech Used (0) 0 Bonus (0) 0 TOTAL SCORE: 947 Bonus ------- None Cogmind --------- Core Integrity 0/250 Matter 280/300 Energy 246/250 System Corruption 0% Temperature Cool (2) Movement Treading (240) Ox1 Location -10/Subcaves Parts ------- > --- POWER (1) -------- Ion Engine > --- PROPULSION (2) --- Light Treads Light Treads > --- UTILITY (2) ------ High-capacity Storage Unit Seismic Detector > --- WEAPON (2) ------- Subdweller Beam Cannon Light Cannon > --- INVENTORY (20) --- Subdweller Power Source Light Treads Light Treads Light Treads Wheel Compact Wheel Compact Wheel Small Matter Pod (50) Small Matter Pod (50) Light Armor Plating Light Armor Plating Light Armor Plating Tractor Beam Medium Laser Small Laser Subdweller Machine Gun Light Cannon Light Cannon Grenade Launcher Mining Laser Peak State ------------ > --- POWER ------------ Subdweller Power Source > --- PROPULSION ------- Light Treads Light Treads > --- UTILITY ---------- High-capacity Storage Unit Seismic Detector > --- WEAPON ----------- Subdweller Beam Cannon Light Cannon > --- INVENTORY -------- Ion Engine Light Treads Light Treads Light Treads Wheel Compact Wheel Compact Wheel Small Matter Pod Small Matter Pod Light Armor Plating Light Armor Plating Light Armor Plating Tractor Beam Medium Laser Small Laser Subdweller Machine Gun Light Cannon Light Cannon Grenade Launcher Mining Laser [Rating: 11] Favorites ----------- Power Ion Engine Engine Ion Engine Propulsion Light Treads Treads Light Treads Utility Seismic Detector Device Seismic Detector Storage High-capacity Storage Unit Protection Light Armor Plating Weapon Light Cannon Energy Gun Medium Laser Energy Cannon Subdweller Beam Cannon Ballistic Cannon Light Cannon Special Weapon Mining Laser Build | -11 -10 -10 ------- Run | Yrd Mat Sub Slots Evolved . | . . . Power . | . . . Propulsion . | . . . Utility . | . . . Weapon . | . . . Parts Attached 19 | 7 4 8 Power 4 | 1 . 3 Engine 4 | 1 . 3 Core . | . . . Reactor . | . . . Propulsion 4 | 2 . 2 Treads 4 | 2 . 2 Leg . | . . . Wheel . | . . . Hover . | . . . Flight . | . . . Utility 5 | 2 2 1 Device 1 | 1 . . Storage 3 | 1 2 . Processor . | . . . Hackware . | . . . Protection 1 | . . 1 Artifact . | . . . Weapon 6 | 2 2 2 Energy Gun 2 | 2 . . Energy Cannon 2 | . . 2 Ballistic Gun . | . . . Ballistic Cannon 1 | . 1 . Launcher . | . . . Special Weapon 1 | . 1 . Impact Weapon . | . . . Slashing Weapon . | . . . Piercing Weapon . | . . . Special Melee Weapon . | . . . Unidentified Prototypes . | . . . Parts Lost . | . . . Power . | . . . Propulsion . | . . . Utility . | . . . Weapon . | . . . Highest Loss Streak . | . . . To Critical Strikes . | . . . Average Backups 16 | 4 14 20 Power 1 | . 1 1 Propulsion 5 | 3 5 6 Utility 3 | . 1 6 Weapon 6 | 1 5 7 Tool/Special . | . . . Unused Backups 17 | . 3 14 Power 1 | . 1 . Propulsion 6 | . 2 4 Utility 5 | . . 5 Weapon 5 | . . 5 Tool/Special . | . . . Average Slot Usage (%) 100 | . 100 100 Engine 14 | . 14 14 Treads 28 | . 28 28 Device 13 | . 14 13 Storage 14 | . 14 14 Energy Gun 12 | . 17 . Energy Cannon 4 | . . 13 Ballistic Cannon 10 | . 8 14 Special Weapon 1 | . 2 . Peak Build Rating 11 | 7 9 11 Average Rating 8 | 5 7 10 On Entrance 5 | . 7 9 Avg Prop Armor Cover (%) . | . . . Naked Turns . | . . . Heaviest Build 57 | 14 51 57 Greatest Support 40 | 40 40 40 Greatest Overweight (x) 1 | . 1 1 Average Overweight (x) . | . . 1 Largest Inventory Capacity 20 | 8 20 20 Average Capacity 17 | 7 17 20 Most Carried 20 | 8 20 20 Average Carried 16 | 4 14 19 Final Capacity 20 | 8 20 20 Final Carried 20 | 8 20 20 Class Distribution -------------------- 100% | Mutant Dominant Class ---------------- Mutant | -10/Materials Mutant | -10/Subcaves Resources | -11 -10 -10 ----------- Run | Yrd Mat Sub Matter Collected 582 | 266 192 124 Remotely . | . . . Salvage Created 867 | 121 630 116 Parts 34 | 5 25 4 Haulers Intercepted 2 | . 2 . Recyclers Shooed 3 | . 3 . Parts Field Recycled . | . . . Retrieved Matter . | . . . Parts Self-Destructed 2 | . . 2 Prevented . | . . . Parts Restored . | . . . Kills | -11 -10 -10 ------- Run | Yrd Mat Sub Combat Hostiles Destroyed 12 | . 9 3 Guns 8 | . 8 . Cannons 4 | . 1 3 Classes Destroyed 8 | 2 5 1 Worker 1 | . 1 . Tunneler 1 | 1 . . Hauler 2 | . 2 . Recycler 5 | 1 4 . Watcher 1 | . 1 . Swarmer 5 | . 5 . Grunt 4 | . 4 . Subdweller 3 | . . 3 Best Kill Streak 3 | 2 3 2 Combat Bots Only 3 | . 3 2 Max Kills in Single Turn 2 | 1 2 1 Gunslinging 1 | . 1 . Exploded . | . . . Melee . | . . . Uniques/NPCs Destroyed . | . . . Combat | -11 -10 -10 -------- Run | Yrd Mat Sub Hostile Shots Fired 51 | . 31 20 Missed 12 | . 11 1 Hits 39 | . 20 19 Projectile 39 | . 20 19 AOE 1 | . . 1 Critical Strikes 3 | . . 3 Damage Taken 680 | . 215 465 Core 263 | . 22 241 Absorbed by Shields . | . . . Regen/Repaired (Parts) 180 | . 180 . Core Remaining (%) 100 | 100 . . Volleys Fired 76 | 5 60 11 Largest 2 | 2 2 2 Hottest 100 | 90 100 90 Shots Fired 142 | 10 110 22 Gun 102 | 10 92 . Cannon 34 | . 12 22 Launcher . | . . . Special 6 | . 6 . Kinetic 23 | . 12 11 Thermal 119 | 10 98 11 Explosive . | . . . Electromagnetic . | . . . Robot Hit Streak 11 | 4 8 11 Robot Miss Streak 4 | 1 4 1 Penetration Max . | . . . Secondary Targets 1 | . 1 . Max Gunslinging Chain 1 | . 1 . Shots Hit Robots 92 | 7 67 18 Core Hits 35 | 3 26 6 Critical Kills . | . . . Critical Parts Destroyed . | . . . Critical Strikes 5 | . 4 1 Burn 4 | . 4 . Blast 1 | . . 1 Melee Attacks . | . . . Impact . | . . . Slashing . | . . . Piercing . | . . . Sneak Attacks . | . . . Combat Hostiles . | . . . Follow-up Attacks . | . . . Damage Inflicted 1257 | 79 863 315 Guns 806 | 79 727 . Cannons 451 | . 136 315 Explosions . | . . . Melee . | . . . Ramming . | . . . Kinetic 273 | . 136 137 Thermal 984 | 79 727 178 Explosive . | . . . Electromagnetic . | . . . Impact . | . . . Slashing . | . . . Piercing . | . . . Highest Corruption . | . . . Average Corruption . | . . . Corruption Purged . | . . . Corruption Blocked . | . . . Overload Shots . | . . . Overflow Damage 5 | . 5 . Projectiles 5 | . 5 . Explosions . | . . . Melee . | . . . Knockbacks 3 | . 1 2 Impact . | . . . Kinetic 3 | . 1 2 Secondary . | . . . Self-Inflicted Damage . | . . . Shots . | . . . Rammed . | . . . Targets Rammed . | . . . Kicked . | . . . Crushed . | . . . Highest Temperature 222 | 90 222 2 Average Temperature 70 | 41 73 2 Received Heat Transfer 156 | . 78 78 Siege Activations . | . . . Martial Activations . | . . . Shielding Activations . | . . . Robots Disrupted . | . . . Combat Hostiles . | . . . Robots Corrupted . | . . . Combat Hostiles . | . . . Parts Fried . | . . . Impact Corruptions . | . . . Robots Melted . | . . . Combat Hostiles . | . . . Parts Melted 5 | . 5 . Heat Transferred 2810 | 199 2241 370 Parts Sabotaged . | . . . Parts Stolen . | . . . Parts Stripped . | . . . Power Chain Reactions . | . . . Alert | -11 -10 -10 ------- Run | Yrd Mat Sub Maximum Alert Level . | . . . Low Security (%) 100 | 100 100 . Level 1 . | . . . Level 2 . | . . . Level 3 . | . . . Level 4 . | . . . Level 5 . | . . . High Security . | . . . Max Security . | . . . Peak Influence 122 | 10 122 . Initial . | . . . Average 16 | 1 17 . Influence Increases 316 | 10 306 . Destroy 0b10 Robot/C 180 | . 180 . Destroy 0b10 Robot/NC 50 | 10 40 . Destroy Leader 46 | . 46 . Successful Hack 20 | . 20 . Destroy Structure 5 | . 5 . Lose Combat Pursuer 15 | . 15 . Influence Decreases 316 | 10 306 . Time Decay 316 | 10 306 . Squads Dispatched 3 | . 3 . Investigation 3 | . 3 . Extermination . | . . . Reinforcement . | . . . Assault . | . . . Garrison . | . . . Intercept . | . . . Searches Triggered . | . . . Construction Impeded . | . . . Haulers Reinforced . | . . . Active Scanning Responses . | . . . Cargo Convoy Interrupts . | . . . Stealth | -11 -10 -10 --------- Run | Yrd Mat Sub Distress Signals 2 | . 2 . Communications Jammed . | . . . Distress Signals . | . . . Times Spotted 24 | . 19 5 Peak Tracking Total 4 | . 4 2 Tactical Retreats 1 | . 1 . Traps | -11 -10 -10 ------- Run | Yrd Mat Sub Traps Triggered 1 | . 1 . Indirectly . | . . . Trap Hack Attempts . | . . . Triggered . | . . . Disarmed . | . . . Reprogrammed . | . . . Reused . | . . . Traps Extracted . | . . . Installed . | . . . Triggered . | . . . Machines | -11 -10 -10 ---------- Run | Yrd Mat Sub Machines Disabled 1 | . 1 . Max in Single Turn 1 | . 1 . Machines Repaired . | . . . Machines Dismantled . | . . . Machines Sabotaged . | . . . Overloaded Fab Kills . | . . . Hacking | -11 -10 -10 --------- Run | Yrd Mat Sub Machines Accessed 8 | . 8 . Terminals 6 | . 6 . Fabricators . | . . . Repair Stations 1 | . 1 . Recycling Units 1 | . 1 . Scanalyzers . | . . . Garrison Access . | . . . Total Hacks 19 | . 19 . Successful 10 | . 10 . Failed 9 | . 9 . Catastrophic . | . . . Database Lockouts . | . . . Manual 3 | . 3 . Terminals 14 | . 14 . Fabricators . | . . . Repair Stations 4 | . 4 . Recycling Units 1 | . 1 . Scanalyzers . | . . . Garrison Access . | . . . Terminal Hacks 5 | . 5 . Prototype ID Bank 2 | . 2 . Locate Traps 3 | . 3 . Fabricator Hacks . | . . . Repair Station Hacks 2 | . 2 . Scan Component 1 | . 1 . Repair 1 | . 1 . Recycling Unit Hacks 1 | . 1 . Retrieve Components 1 | . 1 . Scanalyzer . | . . . Garrison Access Hacks . | . . . Unauthorized Hacks 2 | . 2 . Terminals 1 | . 1 . Operators 1 | . 1 . Fabricators . | . . . Repair Stations 1 | . 1 . Mechanics 1 | . 1 . Recycling Units . | . . . Scanalyzers . | . . . Garrison Access . | . . . Data Cores Recovered . | . . . Used . | . . . Hacking Detections 6 | . 6 . Full Trace Events 2 | . 2 . Feedback Events . | . . . Feedback Blocked . | . . . Robot Schematics Acquired . | . . . Robots Built . | . . . Authchips . | . . . Time . | . . . Total Robot Build Rating . | . . . Part Schematics Acquired . | . . . Parts Built . | . . . Authchips . | . . . Time . | . . . Total Part Build Rating . | . . . Part Studies Acquired . | . . . Parts Repaired 1 | . 1 . Time 26 | . 26 . Parts Recycled . | . . . Recycled Matter . | . . . Retrieved Matter . | . . . Retrieved Components 4 | . 4 . Parts Scanalyzed . | . . . Part Schematics Acquired . | . . . Parts Damaged . | . . . Bothacking | -11 -10 -10 ------------ Run | Yrd Mat Sub Used RIF Installer . | . . . Robots Hacked . | . . . Non-combat . | . . . Combat . | . . . Robot Hacks Applied . | . . . Relay Couplers Released . | . . . Fabnet Peak Effective % . | . . . Robots Rewired . | . . . Allies Hacked . | . . . Hacks Repelled . | . . . Allies | -11 -10 -10 -------- Run | Yrd Mat Sub Total Allies . | . . . Largest Group . | . . . Highest-Rated Group . | . . . Highest-Rated Ally . | . . . Total Orders . | . . . Ally Attacks . | . . . Total Damage . | . . . Kills . | . . . Allies Corrupted . | . . . Allies Melted . | . . . Intel | -11 -10 -10 ------- Run | Yrd Mat Sub Active Infowar (turns) 3245 | 32 2270 943 Seismic 3245 | 32 2270 943 Robot Analysis Total . | . . . Derelict Logs Recovered . | . . . Drone Launches . | . . . Drone Recoveries . | . . . Exploration | -11 -10 -10 ------------- Run | Yrd Mat Sub Turns Passed 3362 | 112 2270 980 Spaces Moved 1330 | 47 904 379 Core 8 | 8 . . Treads 1322 | 39 904 379 Legs . | . . . Wheels . | . . . Hover . | . . . Flight . | . . . Fastest Speed 50 | 50 160 240 Average Speed 223 | 141 220 240 Slowest Speed 240 | 160 240 240 Overloaded Moves . | . . . Propulsion Burnouts . | . . . Robots Hopped . | . . . Potential Cave-ins . | . . . Cave-ins Triggered . | . . . Exploration Rate (%) 39 | 4 84 31 Regions Visited 2 Branch Regions 1 Pre-discovered Areas . | . . . Known Exits Taken . | . . . Unknown Exits Taken 2 | 1 1 . Scrap Searched . | . . . Spaces Dug 6 | . 6 . Terrain Destroyed 6 | . 6 . Melee . | . . . Projectile 6 | . 6 . AOE . | . . . Terrain Rammed . | . . . Walls Destroyed . | . . . Machines Disabled . | . . . Actions | -11 -10 -10 --------- Run | Yrd Mat Sub Total 1570 | 80 1062 428 Wait 110 | 13 73 24 Move 1328 | 46 903 379 Hop . | . . . Pick Up 26 | 9 16 1 Fast Attach 6 | 6 . . Attach 1 | 1 . . Detach . | . . . Swap 14 | . 5 9 Drop 9 | . 5 4 Fire 76 | 5 60 11 Melee . | . . . Ram . | . . . Kick . | . . . Crush . | . . . Escape Stasis . | . . . Rewire . | . . . Trap . | . . . Miscellaneous . | . . . Route ------- -11/Scrapyard -10/Materials (discovered 5 exits: [*Mat x3] / [*Min] / [*Sub]) -10/Subcaves (discovered 1 exit: [*Mat]) History --------- Turn | Location | Event 14 | -11/Scrapyard | Discovered new exit (range 15) 113 | -11/Scrapyard | Entered Materials 289 | -10/Materials | Discovered new exit (range 8) 310 | -10/Materials | Build established: Mutant 566 | -10/Materials | Discovered new exit (range 10) 643 | -10/Materials | Repaired Hcp. Storage Unit 1112 | -10/Materials | Discovered new exit (range 8) 1129 | -10/Materials | Discovered new exit (range 10) 2055 | -10/Materials | Discovered new exit (range 15) 2383 | -10/Materials | Entered Subcaves 2384 | -10/Subcaves | Approached by a straggling Scientist 2416 | -10/Subcaves | Core integrity fell below 50% 2634 | -10/Subcaves | Discovered new exit (range 9) 3360 | -10/Subcaves | Ambushed by Subdwellers from Twisted Machinery 3363 | -10/Subcaves | Destroyed by NK-GJL(R) with Subdweller Shrapnel Launcher Last Messages --------------- 02602_ Acquired Sub. Machine Gun. 02605_ Dropped Ion Engine. 02606_ Acquired 28 matter. 02609_ Acquired 3 matter. 02634_ EXIT=FOUND 02638_ PK-V8N(O) collects matter. 02642_ Subatomizers dissect the Wheel. 02642_ PK-V8N(O) collects matter. 02653_ PK-V8N(O) puts together Sub. Power Source. 02653_ Subatomizers dissect the Wheel. 02653_ Acquired 21 matter. 02661_ Dropped Beam Cannon. 02664_ Subatomizers dissect the Wheel, destroying it. 02665_ Acquired 10 matter. 02686_ Dropped Sub. Power Source. 02707_ Acquired 10 matter. 02939_ Sub. Power Source shoots sparks and powers down. Map ----- +----------------------------------------------------+ | #"#?##" % #????## #### ## | | "####" " #?????## #?# | | #?# [ "" % #??????## ### # | | # #??###*& ##????????# #?# ### | | # ##?# = ## % ## ##?????????? ##?# ?? | | ### ## #### ##??????????? ##?? ? | | # # # #####??# #?????????????#??? | | #?????? ???????????????? | | # # #?????? % #???????????????? | | % # ## # #?????? #??????????????? | | < # ##### ##?????? ###????????????????## #? | | % # #??######????#????????????????????? #?? | | % #### #???## ##????????????????????????????? | | ##??# ##### ###??????????????????????????? | | ##??## # #??????????????????????????? | | #??# ##??????????????????????????" | | #### #### #??????????????????????????? | | # ##??### ##??????????????????????????? | | ## ##????## ##?????????????????????????? | | ######????## ##????????????????????????? | | ####?????????# ##???????????????????????? | | ####????????????## #???????????????????????? | | #????????????????### #???????????""??????????? | | ???????????????????## #????### ""??????????? | | ????????????????????## ### ""??????????? | | ?????????????????????# @ ""??????????? | | ?????????????????????## R""?????????? | | ??????????????????????######## ## R"?????????? | | ????????????????????????????????#??????#?????????? | | ?????????????????????????????????????????????????? | | ?????????????????????????????????????????????????? | | ?????????????????????????????????????????????????? | | ?????????????????????????????????????????????????? | | ?????????????????????????????????????????????????? | | ?????????????????????????????????????????????????? | | ?????????????????????????????????????????????????? | | ?????????????????????????????????????????????????? | | ?????????????????????????????????????????????????? | | ?????????????????????????????????????????????????? | | ?????????????????????????????????????????????????? | | ?????????????????????????????????????????????????? | | ?????????????????????????????????????????????????? | | ?????????????????????????????????????????????????? | | | | | | | | | | | | | | | +----------------------------------------------------+ Best States ------------- Heat Dissipation 25 Energy Generation 15 Energy Capacity 250 Matter Stores 300 Matter Capacity 300 Sight Range 16 Terrain Scan Density 10 Armor Coverage 150 Evasion (%) 40 Recoil Reduction 2 Item Schematics ----------------- None Robot Schematics ------------------ None Fabricated ------------ Nothing Repaired ---------- Hcp. Storage Unit | 64% | -10/Materials Studied --------- None Alien Tech Used ----------------- None Achievements -------------- None Challenges ------------ None Game ------ Seed MasterTimingWarhead Manual? 0 Play Time 00:16:43 Cumulative 153.8 hours Start 2026.07.23 @ 11:06:29 End 2026.07.23 @ 11:30:31 Sessions 1 Manual Loads 0 Difficulty Rogue Special Mode None Game No. 69 Rogue 68 Adventurer 1 Explorer 0 Win Type - Total 1 Types 1/0/0/0/0/0/0/0/0/0 Lore% 51 Gallery% 48 Achievement% 40 Wizard Run 0 Options --------- Layout 1 ASCII 0 Keyboard 0 Movement Numpad Keybinds 0 Fullscreen 1 Font 24/Smallcaps Map View 50x35 Zoom Use 0% Tactical HUD 1 Map Filters NONE Filters NONE Steam 1 RUN: 4f2274ff-f9b8-4a3a-b71d-f752a02ad9f1